[Event "Titled Tuesday Blitz May 03 Late 2022"]
[White "Zhigalko, Sergei"]
[Black "Dobre, Claudiu-Cristian"]
[WhiteFideId "13502956"]
[BlackFideId "1211854"]
[WhiteElo "2662"]
[BlackElo "2207"]
[Result "1-0"]
[Round "01"]
[TimeControl "180+1"]
[Date "2022.05.03"]
[WhiteClock "0:00:08"]
[BlackClock "0:00:09"]

1. e4 {[%clk 0:03:00]}  e5 {[%clk 0:02:59]} 2. Nf3 {[%clk 0:03:00]}  Nf6 {[%clk 0:02:59]} 3. d4 {[%clk 0:03:00]}  Nxe4 {[%clk 0:02:54]} 4. Bd3 {[%clk 0:03:00]}  Nc6 {[%clk 0:02:54]} 5. d5 {[%clk 0:02:58]}  Nf6 {[%clk 0:02:48]} 6. dxc6 {[%clk 0:02:55]}  e4 {[%clk 0:02:46]} 7. cxb7 {[%clk 0:02:46]}  Bxb7 {[%clk 0:02:43]} 8. Be2 {[%clk 0:02:47]}  exf3 {[%clk 0:02:42]} 9. Bxf3 {[%clk 0:02:48]}  Bxf3 {[%clk 0:02:04]} 10. Qxf3 {[%clk 0:02:47]}  Bc5 {[%clk 0:01:51]} 11. O-O {[%clk 0:02:45]}  O-O {[%clk 0:01:50]} 12. Bg5 {[%clk 0:02:31]}  h6 {[%clk 0:01:50]} 13. Bh4 {[%clk 0:02:28]}  c6 {[%clk 0:01:41]} 14. Nd2 {[%clk 0:02:14]}  d5 {[%clk 0:01:31]} 15. Nb3 {[%clk 0:02:13]}  Be7 {[%clk 0:01:31]} 16. Nd4 {[%clk 0:02:08]}  Qd7 {[%clk 0:01:19]} 17. Nf5 {[%clk 0:02:03]}  Rae8 {[%clk 0:00:50]} 18. Rae1 {[%clk 0:01:40]}  Bd8 {[%clk 0:00:49]} 19. Nxh6+ {[%clk 0:01:34]}  gxh6 {[%clk 0:00:46]} 20. Bxf6 {[%clk 0:01:34]}  Bxf6 {[%clk 0:00:42]} 21. Qxf6 {[%clk 0:01:34]}  Re6 {[%clk 0:00:42]} 22. Rxe6 {[%clk 0:01:26]}  Qxe6 {[%clk 0:00:41]} 23. Qd4 {[%clk 0:01:11]}  Rb8 {[%clk 0:00:22]} 24. b3 {[%clk 0:01:07]}  Rb7 {[%clk 0:00:20]} 25. h3 {[%clk 0:01:06]}  Re7 {[%clk 0:00:20]} 26. Rd1 {[%clk 0:01:04]}  Qe4 {[%clk 0:00:19]} 27. Qxe4 {[%clk 0:01:03]}  Rxe4 {[%clk 0:00:19]} 28. Kf1 {[%clk 0:01:04]}  Kg7 {[%clk 0:00:18]} 29. Re1 {[%clk 0:00:57]}  Rd4 {[%clk 0:00:18]} 30. Ke2 {[%clk 0:00:56]}  a5 {[%clk 0:00:18]} 31. c3 {[%clk 0:00:50]}  Rf4 {[%clk 0:00:17]} 32. f3 {[%clk 0:00:47]}  h5 {[%clk 0:00:16]} 33. Kf2 {[%clk 0:00:46]}  h4 {[%clk 0:00:15]} 34. Re8 {[%clk 0:00:46]}  a4 {[%clk 0:00:15]} 35. Ke3 {[%clk 0:00:38]}  Rf6 {[%clk 0:00:14]} 36. b4 {[%clk 0:00:31]}  Rg6 {[%clk 0:00:13]} 37. Kf2 {[%clk 0:00:31]}  Rd6 {[%clk 0:00:13]} 38. Re2 {[%clk 0:00:21]}  d4 {[%clk 0:00:13]} 39. Rd2 {[%clk 0:00:20]}  c5 {[%clk 0:00:13]} 40. bxc5 {[%clk 0:00:19]}  dxc3 {[%clk 0:00:10]} 41. Rc2 {[%clk 0:00:14]}  Rc6 {[%clk 0:00:10]} 42. Rxc3 {[%clk 0:00:14]}  Kf6 {[%clk 0:00:11]} 43. Rc4 {[%clk 0:00:14]}  Ke5 {[%clk 0:00:11]} 44. Rxh4 {[%clk 0:00:14]}  Rxc5 {[%clk 0:00:12]} 45. Rxa4 {[%clk 0:00:13]}  Rc2+ {[%clk 0:00:11]} 46. Kg3 {[%clk 0:00:14]}  f5 {[%clk 0:00:12]} 47. h4 {[%clk 0:00:13]}  Kf6 {[%clk 0:00:12]} 48. Ra6+ {[%clk 0:00:11]}  Ke5 {[%clk 0:00:12]} 49. Ra5+ {[%clk 0:00:11]}  Kf6 {[%clk 0:00:12]} 50. a4 {[%clk 0:00:11]}  f4+ {[%clk 0:00:12]} 51. Kh3 {[%clk 0:00:10]}  Rc1 {[%clk 0:00:11]} 52. Kg4 {[%clk 0:00:07]}  Rg1 {[%clk 0:00:11]} 53. Ra6+ {[%clk 0:00:07]}  Ke5 {[%clk 0:00:10]} 54. Ra5+ {[%clk 0:00:07]}  Kd4 {[%clk 0:00:10]} 55. Kxf4 {[%clk 0:00:08]}  Rxg2 {[%clk 0:00:11]} 56. h5 {[%clk 0:00:08]}  Rh2 {[%clk 0:00:11]} 57. Kg5 {[%clk 0:00:07]}  Kc4 {[%clk 0:00:11]} 58. Kg6 {[%clk 0:00:07]}  Kb4 {[%clk 0:00:11]} 59. Rg5 {[%clk 0:00:07]}  Kxa4 {[%clk 0:00:11]} 60. h6 {[%clk 0:00:07]}  Rb2 {[%clk 0:00:10]} 61. h7 {[%clk 0:00:07]}  Rb6+ {[%clk 0:00:10]} 62. Kg7 {[%clk 0:00:07]}  Rb7+ {[%clk 0:00:09]} 63. Kh6 {[%clk 0:00:07]}  Rb8 {[%clk 0:00:09]} 64. Rg8 {[%clk 0:00:07]}  Rb1 {[%clk 0:00:10]} 65. h8=Q {[%clk 0:00:07]}  Rh1+ {[%clk 0:00:09]} 66. Kg7 {[%clk 0:00:08]} 1-0


[Site "https://www.chess.com"]

[Event "Titled Tuesday Blitz May 03 Late 2022"]
[White "Abdyzhapar, Asylbek"]
[Black "Sztokbant, Bernardo Vainzoff"]
[WhiteFideId "13800337"]
[BlackFideId "2115956"]
[WhiteElo "2752"]
[BlackElo "2516"]
[Result "1-0"]
[Round "02"]
[TimeControl "180+1"]
[Date "2022.05.03"]
[WhiteClock "0:01:52"]
[BlackClock "0:02:04"]

1. d4 {[%clk 0:03:00]}  d5 {[%clk 0:03:00]} 2. Bf4 {[%clk 0:02:58]}  c6 {[%clk 0:03:00]} 3. c4 {[%clk 0:02:56]}  Nf6 {[%clk 0:02:58]} 4. cxd5 {[%clk 0:02:55]}  cxd5 {[%clk 0:02:57]} 5. Nc3 {[%clk 0:02:55]}  Nc6 {[%clk 0:02:57]} 6. e3 {[%clk 0:02:55]}  a6 {[%clk 0:02:57]} 7. Rc1 {[%clk 0:02:54]}  e6 {[%clk 0:02:53]} 8. Bd3 {[%clk 0:02:52]}  Bd6 {[%clk 0:02:53]} 9. Bxd6 {[%clk 0:02:52]}  Qxd6 {[%clk 0:02:54]} 10. f4 {[%clk 0:02:52]}  O-O {[%clk 0:02:51]} 11. Nf3 {[%clk 0:02:52]}  b5 {[%clk 0:02:48]} 12. O-O {[%clk 0:02:51]}  Bb7 {[%clk 0:02:48]} 13. Ne5 {[%clk 0:02:51]}  Rac8 {[%clk 0:02:48]} 14. Bb1 {[%clk 0:02:41]}  b4 {[%clk 0:02:43]} 15. Na4 {[%clk 0:02:40]}  Nd7 {[%clk 0:02:33]} 16. Nxd7 {[%clk 0:02:37]}  Qxd7 {[%clk 0:02:33]} 17. Nb6 {[%clk 0:02:36]}  Qd6 {[%clk 0:02:32]} 18. Nxc8 {[%clk 0:02:36]}  Rxc8 {[%clk 0:02:33]} 19. Rc5 {[%clk 0:02:35]}  Rd8 {[%clk 0:02:31]} 20. Qa4 {[%clk 0:02:34]}  e5 {[%clk 0:02:28]} 21. fxe5 {[%clk 0:02:31]}  Nxe5 {[%clk 0:02:28]} 22. h3 {[%clk 0:02:27]}  Nc4 {[%clk 0:02:26]} 23. Qxb4 {[%clk 0:02:15]}  Nxe3 {[%clk 0:02:14]} 24. Rf3 {[%clk 0:02:15]}  Qe7 {[%clk 0:02:08]} 25. Qe1 {[%clk 0:02:09]}  Re8 {[%clk 0:02:07]} 26. Rc3 {[%clk 0:01:58]}  Nc4 {[%clk 0:02:07]} 27. Qxe7 {[%clk 0:01:56]}  Rxe7 {[%clk 0:02:08]} 28. b3 {[%clk 0:01:52]}  Kf8 {[%clk 0:02:04]} 1-0


[Site "https://www.chess.com"]

[Event "Titled Tuesday Blitz May 03 Late 2022"]
[White "Aggelis, Nikolaos"]
[Black "Tristan, Leonardo"]
[WhiteFideId "4213220"]
[BlackFideId "113816"]
[WhiteElo "2154"]
[BlackElo "2404"]
[Result "0-1"]
[Round "02"]
[TimeControl "180+1"]
[Date "2022.05.03"]
[WhiteClock "0:00:14"]
[BlackClock "0:01:22"]

1. d4 {[%clk 0:03:00]}  d5 {[%clk 0:02:59]} 2. Nf3 {[%clk 0:02:38]}  Nf6 {[%clk 0:02:59]} 3. g3 {[%clk 0:02:38]}  Bf5 {[%clk 0:02:58]} 4. Bg2 {[%clk 0:02:37]}  e6 {[%clk 0:02:59]} 5. c4 {[%clk 0:02:37]}  c6 {[%clk 0:02:59]} 6. Qb3 {[%clk 0:02:37]}  Qb6 {[%clk 0:02:59]} 7. c5 {[%clk 0:02:37]}  Qxb3 {[%clk 0:02:57]} 8. axb3 {[%clk 0:02:38]}  a6 {[%clk 0:02:57]} 9. Nc3 {[%clk 0:02:37]}  Nbd7 {[%clk 0:02:57]} 10. b4 {[%clk 0:02:38]}  Rc8 {[%clk 0:02:57]} 11. Nh4 {[%clk 0:02:37]}  Bg4 {[%clk 0:02:56]} 12. h3 {[%clk 0:02:37]}  Bh5 {[%clk 0:02:56]} 13. g4 {[%clk 0:02:37]}  Bg6 {[%clk 0:02:57]} 14. Nxg6 {[%clk 0:02:38]}  hxg6 {[%clk 0:02:57]} 15. Bf4 {[%clk 0:02:38]}  Be7 {[%clk 0:02:55]} 16. O-O {[%clk 0:02:35]}  Bd8 {[%clk 0:02:55]} 17. f3 {[%clk 0:01:53]}  Bc7 {[%clk 0:02:55]} 18. Bxc7 {[%clk 0:01:53]}  Rxc7 {[%clk 0:02:56]} 19. e4 {[%clk 0:01:54]}  g5 {[%clk 0:02:53]} 20. Kf2 {[%clk 0:01:47]}  Nf8 {[%clk 0:02:52]} 21. Rfe1 {[%clk 0:01:28]}  Kd7 {[%clk 0:02:26]} 22. Kg3 {[%clk 0:01:28]}  Ng6 {[%clk 0:02:26]} 23. e5 {[%clk 0:01:27]}  Ng8 {[%clk 0:02:21]} 24. Bf1 {[%clk 0:01:27]}  N8e7 {[%clk 0:02:21]} 25. b3 {[%clk 0:01:20]}  Rcc8 {[%clk 0:02:20]} 26. Ra2 {[%clk 0:01:20]}  Rh6 {[%clk 0:02:17]} 27. Rh2 {[%clk 0:01:19]}  Rch8 {[%clk 0:02:17]} 28. Bd3 {[%clk 0:01:01]}  Nf4 {[%clk 0:02:17]} 29. Bf1 {[%clk 0:01:01]}  f6 {[%clk 0:02:16]} 30. exf6 {[%clk 0:01:00]}  gxf6 {[%clk 0:02:16]} 31. Ne2 {[%clk 0:01:01]}  Nd3 {[%clk 0:02:07]} 32. Ra1 {[%clk 0:00:57]}  Nxb4 {[%clk 0:02:07]} 33. Nc3 {[%clk 0:00:58]}  f5 {[%clk 0:01:59]} 34. Rb2 {[%clk 0:00:46]}  Ng6 {[%clk 0:01:47]} 35. Ra4 {[%clk 0:00:44]}  Nf4 {[%clk 0:01:47]} 36. Rxb4 {[%clk 0:00:42]}  Rxh3+ {[%clk 0:01:47]} 37. Bxh3 {[%clk 0:00:38]}  Rxh3+ {[%clk 0:01:48]} 38. Kf2 {[%clk 0:00:38]}  Nd3+ {[%clk 0:01:38]} 39. Kg2 {[%clk 0:00:38]}  Nf4+ {[%clk 0:01:39]} 40. Kg1 {[%clk 0:00:31]}  Rxf3 {[%clk 0:01:26]} 41. Rxb7+ {[%clk 0:00:30]}  Kc8 {[%clk 0:01:26]} 42. Rb6 {[%clk 0:00:29]}  Rxc3 {[%clk 0:01:24]} 43. gxf5 {[%clk 0:00:29]}  exf5 {[%clk 0:01:23]} 44. Rxc6+ {[%clk 0:00:28]}  Kd7 {[%clk 0:01:24]} 45. Rxa6 {[%clk 0:00:27]}  g4 {[%clk 0:01:23]} 46. Rf6 {[%clk 0:00:19]}  g3 {[%clk 0:01:23]} 47. Rb1 {[%clk 0:00:16]}  Rc2 {[%clk 0:01:22]} 48. Rxf5 {[%clk 0:00:15]}  Nh3+ {[%clk 0:01:22]} 49. Kf1 {[%clk 0:00:12]}  g2+ {[%clk 0:01:22]} 50. Ke1 {[%clk 0:00:13]}  g1=Q+ {[%clk 0:01:22]} 51. Rf1 {[%clk 0:00:14]}  Qe3+ {[%clk 0:01:21]} 52. Kd1 {[%clk 0:00:14]}  Qd2# {[%clk 0:01:22]} 0-1


[Site "https://www.chess.com"]

[Event "Titled Tuesday Blitz May 03 Late 2022"]
[White "Al-Tarboush, Ward"]
[Black "Kruckenhauser, Arthur"]
[WhiteFideId "7601450"]
[BlackFideId "1642812"]
[WhiteElo "2276"]
[BlackElo "2243"]
[Result "1-0"]
[Round "02"]
[TimeControl "180+1"]
[Date "2022.05.03"]
[WhiteClock "0:00:49"]
[BlackClock "0:00:06"]

1. e4 {[%clk 0:02:59]}  e5 {[%clk 0:02:59]} 2. Nf3 {[%clk 0:02:59]}  Nc6 {[%clk 0:03:00]} 3. Bb5 {[%clk 0:03:00]}  a6 {[%clk 0:03:00]} 4. Ba4 {[%clk 0:03:00]}  Nf6 {[%clk 0:03:00]} 5. O-O {[%clk 0:03:00]}  d6 {[%clk 0:02:59]} 6. c3 {[%clk 0:02:57]}  Bd7 {[%clk 0:02:59]} 7. d4 {[%clk 0:02:57]}  g6 {[%clk 0:02:59]} 8. Re1 {[%clk 0:02:50]}  Bg7 {[%clk 0:02:57]} 9. Nbd2 {[%clk 0:02:47]}  O-O {[%clk 0:02:56]} 10. Nf1 {[%clk 0:02:47]}  Re8 {[%clk 0:02:53]} 11. Ng3 {[%clk 0:02:47]}  b5 {[%clk 0:02:35]} 12. Bc2 {[%clk 0:02:43]}  exd4 {[%clk 0:02:29]} 13. cxd4 {[%clk 0:02:44]}  Bg4 {[%clk 0:02:29]} 14. Be3 {[%clk 0:02:43]}  Nh5 {[%clk 0:02:08]} 15. Rc1 {[%clk 0:02:28]}  Nxg3 {[%clk 0:01:53]} 16. hxg3 {[%clk 0:02:27]}  Na5 {[%clk 0:01:39]} 17. b3 {[%clk 0:02:24]}  Rc8 {[%clk 0:01:35]} 18. d5 {[%clk 0:02:17]}  Nb7 {[%clk 0:01:34]} 19. b4 {[%clk 0:02:12]}  a5 {[%clk 0:01:30]} 20. a3 {[%clk 0:02:11]}  axb4 {[%clk 0:01:30]} 21. axb4 {[%clk 0:02:12]}  Bc3 {[%clk 0:01:31]} 22. Bd2 {[%clk 0:02:12]}  Bxd2 {[%clk 0:01:29]} 23. Qxd2 {[%clk 0:02:13]}  c5 {[%clk 0:01:21]} 24. dxc6 {[%clk 0:02:11]}  Rxc6 {[%clk 0:01:20]} 25. Nd4 {[%clk 0:02:12]}  Rb6 {[%clk 0:01:11]} 26. Bb3 {[%clk 0:02:11]}  Bd7 {[%clk 0:01:05]} 27. Qf4 {[%clk 0:02:09]}  Qe7 {[%clk 0:01:03]} 28. Rc7 {[%clk 0:02:05]}  Rc8 {[%clk 0:00:59]} 29. Rec1 {[%clk 0:02:02]}  Rxc7 {[%clk 0:00:50]} 30. Rxc7 {[%clk 0:02:03]}  Nd8 {[%clk 0:00:51]} 31. Qe3 {[%clk 0:01:50]}  Rb8 {[%clk 0:00:48]} 32. Ne2 {[%clk 0:01:44]}  Rc8 {[%clk 0:00:45]} 33. Rxc8 {[%clk 0:01:39]}  Bxc8 {[%clk 0:00:46]} 34. Nf4 {[%clk 0:01:39]}  Be6 {[%clk 0:00:38]} 35. Bd5 {[%clk 0:01:37]}  Qd7 {[%clk 0:00:26]} 36. Qb6 {[%clk 0:01:36]}  Kf8 {[%clk 0:00:21]} 37. Qb8 {[%clk 0:01:32]}  Ke7 {[%clk 0:00:21]} 38. Ne2 {[%clk 0:01:06]}  Bxd5 {[%clk 0:00:20]} 39. exd5 {[%clk 0:01:05]}  Qb7 {[%clk 0:00:21]} 40. Qxb7+ {[%clk 0:01:04]}  Nxb7 {[%clk 0:00:22]} 41. Nd4 {[%clk 0:01:04]}  Kf6 {[%clk 0:00:20]} 42. f4 {[%clk 0:01:04]}  Nd8 {[%clk 0:00:11]} 43. Nxb5 {[%clk 0:01:04]}  Ke7 {[%clk 0:00:11]} 44. Nd4 {[%clk 0:01:03]}  Kd7 {[%clk 0:00:11]} 45. Kf2 {[%clk 0:01:01]}  f6 {[%clk 0:00:10]} 46. g4 {[%clk 0:01:01]}  Nf7 {[%clk 0:00:09]} 47. Ke3 {[%clk 0:00:59]}  g5 {[%clk 0:00:08]} 48. g3 {[%clk 0:00:58]}  h6 {[%clk 0:00:07]} 49. Ke4 {[%clk 0:00:55]}  Ke7 {[%clk 0:00:05]} 50. b5 {[%clk 0:00:53]}  gxf4 {[%clk 0:00:05]} 51. gxf4 {[%clk 0:00:51]}  Nd8 {[%clk 0:00:06]} 52. Nf5+ {[%clk 0:00:50]}  Kd7 {[%clk 0:00:05]} 53. Nxh6 {[%clk 0:00:49]}  Kc7 {[%clk 0:00:06]} 54. g5 {[%clk 0:00:48]}  fxg5 {[%clk 0:00:06]} 55. fxg5 {[%clk 0:00:49]}  Kb6 {[%clk 0:00:06]} 56. g6 {[%clk 0:00:49]} 1-0


[Site "https://www.chess.com"]

[Event "Titled Tuesday Blitz May 03 Late 2022"]
[White "Ansh M Shah"]
[Black "Gabrielian, Artur"]
[WhiteFideId "25033379"]
[BlackFideId "4131002"]
[WhiteElo "1819"]
[BlackElo "2440"]
[Result "0-1"]
[Round "02"]
[TimeControl "180+1"]
[Date "2022.05.03"]
[WhiteClock "0:01:59"]
[BlackClock "0:02:26"]

1. d4 {[%clk 0:03:00]}  Nf6 {[%clk 0:02:59]} 2. c4 {[%clk 0:02:58]}  g6 {[%clk 0:02:59]} 3. Nf3 {[%clk 0:02:58]}  Bg7 {[%clk 0:03:00]} 4. g3 {[%clk 0:02:59]}  O-O {[%clk 0:03:00]} 5. Bg2 {[%clk 0:03:00]}  d6 {[%clk 0:03:00]} 6. O-O {[%clk 0:03:01]}  Nc6 {[%clk 0:03:01]} 7. d5 {[%clk 0:03:01]}  Na5 {[%clk 0:03:00]} 8. Nbd2 {[%clk 0:02:59]}  c5 {[%clk 0:02:59]} 9. Qc2 {[%clk 0:02:59]}  e6 {[%clk 0:02:58]} 10. e4 {[%clk 0:02:59]}  exd5 {[%clk 0:02:59]} 11. exd5 {[%clk 0:02:59]}  Bf5 {[%clk 0:02:57]} 12. Qd1 {[%clk 0:02:58]}  Bd3 {[%clk 0:02:57]} 13. Re1 {[%clk 0:02:58]}  Nxc4 {[%clk 0:02:54]} 14. Nb3 {[%clk 0:02:44]}  Bf5 {[%clk 0:02:53]} 15. Nh4 {[%clk 0:02:43]}  Bg4 {[%clk 0:02:50]} 16. Qc2 {[%clk 0:02:33]}  Nb6 {[%clk 0:02:50]} 17. h3 {[%clk 0:02:29]}  Bd7 {[%clk 0:02:48]} 18. Bf4 {[%clk 0:02:28]}  Qc7 {[%clk 0:02:34]} 19. Rad1 {[%clk 0:02:15]}  Rfe8 {[%clk 0:02:34]} 20. Rxe8+ {[%clk 0:02:12]}  Rxe8 {[%clk 0:02:33]} 21. Qc1 {[%clk 0:02:12]}  Ba4 {[%clk 0:02:29]} 22. Re1 {[%clk 0:02:10]}  Rxe1+ {[%clk 0:02:27]} 23. Qxe1 {[%clk 0:02:10]}  Nbxd5 {[%clk 0:02:27]} 24. Qe4 {[%clk 0:01:59]}  Nxe4 {[%clk 0:02:26]} 0-1


[Site "https://www.chess.com"]

[Event "Titled Tuesday Blitz May 03 Late 2022"]
[White "Babazada, Khazar"]
[Black "Martinez Reyes, Pedro Ramon"]
[WhiteFideId "13413554"]
[BlackFideId "3901807"]
[WhiteElo "2406"]
[BlackElo "2410"]
[Result "1/2-1/2"]
[Round "02"]
[TimeControl "180+1"]
[Date "2022.05.03"]
[WhiteClock "0:00:12"]
[BlackClock "0:00:02"]

1. e4 {[%clk 0:03:00]}  e6 {[%clk 0:02:57]} 2. d4 {[%clk 0:03:00]}  d5 {[%clk 0:02:58]} 3. Nc3 {[%clk 0:02:58]}  Nf6 {[%clk 0:02:58]} 4. e5 {[%clk 0:02:59]}  Ne4 {[%clk 0:02:58]} 5. Nce2 {[%clk 0:03:00]}  f6 {[%clk 0:02:58]} 6. f3 {[%clk 0:02:57]}  Ng5 {[%clk 0:02:57]} 7. h4 {[%clk 0:02:42]}  Nf7 {[%clk 0:02:57]} 8. f4 {[%clk 0:02:42]}  c5 {[%clk 0:02:58]} 9. c3 {[%clk 0:02:41]}  Nc6 {[%clk 0:02:58]} 10. Nf3 {[%clk 0:02:41]}  Be7 {[%clk 0:02:56]} 11. a3 {[%clk 0:02:32]}  a5 {[%clk 0:02:54]} 12. g3 {[%clk 0:02:26]}  O-O {[%clk 0:02:40]} 13. Bg2 {[%clk 0:02:26]}  b5 {[%clk 0:02:39]} 14. O-O {[%clk 0:02:22]}  Nh6 {[%clk 0:02:22]} 15. exf6 {[%clk 0:01:59]}  Bxf6 {[%clk 0:02:17]} 16. dxc5 {[%clk 0:01:52]}  Qe7 {[%clk 0:02:09]} 17. Be3 {[%clk 0:01:51]}  Ng4 {[%clk 0:02:08]} 18. Qd2 {[%clk 0:01:36]}  Nxe3 {[%clk 0:01:51]} 19. Qxe3 {[%clk 0:01:37]}  Bd7 {[%clk 0:01:49]} 20. b4 {[%clk 0:01:37]}  axb4 {[%clk 0:01:46]} 21. axb4 {[%clk 0:01:38]}  Rxa1 {[%clk 0:01:46]} 22. Rxa1 {[%clk 0:01:38]}  Nxb4 {[%clk 0:01:47]} 23. Ra7 {[%clk 0:01:38]}  Nc6 {[%clk 0:01:27]} 24. Rb7 {[%clk 0:01:38]}  Rb8 {[%clk 0:01:27]} 25. Rxb8+ {[%clk 0:01:36]}  Nxb8 {[%clk 0:01:28]} 26. g4 {[%clk 0:01:32]}  g6 {[%clk 0:01:22]} 27. Bh3 {[%clk 0:01:23]}  Na6 {[%clk 0:01:12]} 28. c6 {[%clk 0:01:15]}  Bxc6 {[%clk 0:01:04]} 29. g5 {[%clk 0:01:13]}  Bg7 {[%clk 0:01:03]} 30. Bxe6+ {[%clk 0:01:11]}  Kf8 {[%clk 0:01:03]} 31. f5 {[%clk 0:01:05]}  gxf5 {[%clk 0:00:58]} 32. g6 {[%clk 0:01:06]}  hxg6 {[%clk 0:00:28]} 33. Nf4 {[%clk 0:01:06]}  Qf6 {[%clk 0:00:05]} 34. Qa7 {[%clk 0:00:56]}  Bh6 {[%clk 0:00:05]} 35. Ng5 {[%clk 0:00:52]}  Bxg5 {[%clk 0:00:05]} 36. hxg5 {[%clk 0:00:53]}  Qxg5+ {[%clk 0:00:06]} 37. Kh1 {[%clk 0:00:37]}  d4+ {[%clk 0:00:06]} 38. Nd5 {[%clk 0:00:38]}  Qh4+ {[%clk 0:00:04]} 39. Kg1 {[%clk 0:00:31]}  Qg3+ {[%clk 0:00:04]} 40. Kf1 {[%clk 0:00:28]}  Qd3+ {[%clk 0:00:03]} 41. Kf2 {[%clk 0:00:20]}  Qd2+ {[%clk 0:00:04]} 42. Kf1 {[%clk 0:00:17]}  Qd1+ {[%clk 0:00:04]} 43. Kf2 {[%clk 0:00:16]}  Qc2+ {[%clk 0:00:05]} 44. Kg3 {[%clk 0:00:16]}  Qd3+ {[%clk 0:00:01]} 45. Kf2 {[%clk 0:00:13]}  Qd2+ {[%clk 0:00:01]} 46. Kg3 {[%clk 0:00:13]}  Qg5+ {[%clk 0:00:01]} 47. Kf2 {[%clk 0:00:12]}  Qd2+ {[%clk 0:00:02]} 1/2-1/2


[Site "https://www.chess.com"]

[Event "Titled Tuesday Blitz May 03 Late 2022"]
[White "Barria Zuniga, Daniel"]
[Black "Narayanan.S.L"]
[WhiteFideId "3400816"]
[BlackFideId "5058422"]
[WhiteElo "2414"]
[BlackElo "2494"]
[Result "0-1"]
[Round "02"]
[TimeControl "180+1"]
[Date "2022.05.03"]
[WhiteClock "0:00:37"]
[BlackClock "0:00:55"]

1. c4 {[%clk 0:03:00]}  Nf6 {[%clk 0:02:56]} 2. g3 {[%clk 0:03:00]}  g6 {[%clk 0:02:55]} 3. Bg2 {[%clk 0:03:00]}  Bg7 {[%clk 0:02:56]} 4. Nc3 {[%clk 0:02:59]}  O-O {[%clk 0:02:57]} 5. d4 {[%clk 0:03:00]}  d6 {[%clk 0:02:56]} 6. e3 {[%clk 0:03:00]}  Nc6 {[%clk 0:02:56]} 7. Nge2 {[%clk 0:03:00]}  e5 {[%clk 0:02:56]} 8. O-O {[%clk 0:03:00]}  h5 {[%clk 0:02:56]} 9. h3 {[%clk 0:02:59]}  Bf5 {[%clk 0:02:55]} 10. d5 {[%clk 0:02:46]}  Ne7 {[%clk 0:02:54]} 11. e4 {[%clk 0:02:46]}  Bd7 {[%clk 0:02:55]} 12. Be3 {[%clk 0:02:34]}  Nh7 {[%clk 0:02:52]} 13. Qd2 {[%clk 0:02:24]}  f5 {[%clk 0:02:52]} 14. f3 {[%clk 0:02:16]}  Nf6 {[%clk 0:01:44]} 15. c5 {[%clk 0:01:47]}  Kh7 {[%clk 0:01:45]} 16. a4 {[%clk 0:01:42]}  Neg8 {[%clk 0:01:44]} 17. a5 {[%clk 0:01:38]}  a6 {[%clk 0:01:43]} 18. b4 {[%clk 0:01:35]}  Bh6 {[%clk 0:01:42]} 19. Bxh6 {[%clk 0:01:31]}  Nxh6 {[%clk 0:01:42]} 20. Rfc1 {[%clk 0:01:20]}  fxe4 {[%clk 0:01:36]} 21. fxe4 {[%clk 0:01:19]}  Qe7 {[%clk 0:01:36]} 22. Nd1 {[%clk 0:00:59]}  Rf7 {[%clk 0:01:33]} 23. c6 {[%clk 0:00:54]}  bxc6 {[%clk 0:01:33]} 24. dxc6 {[%clk 0:00:55]}  Be6 {[%clk 0:01:33]} 25. Ne3 {[%clk 0:00:56]}  Raf8 {[%clk 0:01:23]} 26. Nc3 {[%clk 0:00:53]}  Kg7 {[%clk 0:01:17]} 27. b5 {[%clk 0:00:53]}  axb5 {[%clk 0:01:15]} 28. a6 {[%clk 0:00:54]}  Nh7 {[%clk 0:01:15]} 29. a7 {[%clk 0:00:51]}  Ra8 {[%clk 0:01:16]} 30. Nxb5 {[%clk 0:00:49]}  Ng5 {[%clk 0:01:16]} 31. Nd5 {[%clk 0:00:47]}  Bxd5 {[%clk 0:01:15]} 32. exd5 {[%clk 0:00:47]}  Nf3+ {[%clk 0:01:11]} 33. Bxf3 {[%clk 0:00:47]}  Rxf3 {[%clk 0:01:12]} 34. Kg2 {[%clk 0:00:47]}  e4 {[%clk 0:01:12]} 35. Qd4+ {[%clk 0:00:45]}  Kh7 {[%clk 0:01:12]} 36. Re1 {[%clk 0:00:44]}  Nf5 {[%clk 0:01:11]} 37. Qxe4 {[%clk 0:00:44]}  Rxg3+ {[%clk 0:01:11]} 38. Kh2 {[%clk 0:00:44]}  Qg5 {[%clk 0:01:11]} 39. Rg1 {[%clk 0:00:38]}  Qd2+ {[%clk 0:00:56]} 40. Kh1 {[%clk 0:00:37]}  Rxh3# {[%clk 0:00:55]} 0-1


[Site "https://www.chess.com"]

[Event "Titled Tuesday Blitz May 03 Late 2022"]
[White "Biletskiy, Danylo"]
[Black "Quesada Perez, Yuniesky"]
[WhiteFideId "14155419"]
[BlackFideId "3504409"]
[WhiteElo "2087"]
[BlackElo "2622"]
[Result "0-1"]
[Round "02"]
[TimeControl "180+1"]
[Date "2022.05.03"]
[WhiteClock "0:00:05"]
[BlackClock "0:00:17"]

1. e4 {[%clk 0:03:00]}  c5 {[%clk 0:02:57]} 2. Nf3 {[%clk 0:03:00]}  e6 {[%clk 0:02:57]} 3. d3 {[%clk 0:02:54]}  d5 {[%clk 0:02:52]} 4. Nbd2 {[%clk 0:02:54]}  Nf6 {[%clk 0:02:51]} 5. g3 {[%clk 0:02:54]}  Nc6 {[%clk 0:02:51]} 6. Bg2 {[%clk 0:02:53]}  Be7 {[%clk 0:02:52]} 7. O-O {[%clk 0:02:53]}  O-O {[%clk 0:02:51]} 8. e5 {[%clk 0:02:51]}  Nd7 {[%clk 0:02:51]} 9. Re1 {[%clk 0:02:52]}  Qc7 {[%clk 0:02:50]} 10. Qe2 {[%clk 0:02:53]}  b5 {[%clk 0:02:49]} 11. h4 {[%clk 0:02:52]}  Bb7 {[%clk 0:02:48]} 12. Nf1 {[%clk 0:02:53]}  Rfc8 {[%clk 0:02:48]} 13. N1h2 {[%clk 0:02:53]}  Nd4 {[%clk 0:02:44]} 14. Qd1 {[%clk 0:02:40]}  b4 {[%clk 0:02:31]} 15. Bf4 {[%clk 0:02:38]}  a5 {[%clk 0:02:25]} 16. h5 {[%clk 0:02:31]}  Nxf3+ {[%clk 0:02:22]} 17. Bxf3 {[%clk 0:02:28]}  a4 {[%clk 0:02:19]} 18. Ng4 {[%clk 0:02:19]}  Qd8 {[%clk 0:02:17]} 19. Qd2 {[%clk 0:02:16]}  c4 {[%clk 0:02:04]} 20. d4 {[%clk 0:02:03]}  c3 {[%clk 0:02:04]} 21. bxc3 {[%clk 0:02:03]}  Rxc3 {[%clk 0:02:04]} 22. Re3 {[%clk 0:02:00]}  Rac8 {[%clk 0:02:00]} 23. Rxc3 {[%clk 0:01:56]}  Rxc3 {[%clk 0:02:01]} 24. Be2 {[%clk 0:01:52]}  Nb8 {[%clk 0:01:43]} 25. Bd3 {[%clk 0:01:52]}  Nc6 {[%clk 0:01:42]} 26. Be3 {[%clk 0:01:03]}  h6 {[%clk 0:01:09]} 27. f4 {[%clk 0:01:01]}  Na5 {[%clk 0:00:54]} 28. f5 {[%clk 0:00:37]}  exf5 {[%clk 0:00:53]} 29. Nxh6+ {[%clk 0:00:19]}  gxh6 {[%clk 0:00:51]} 30. Bxh6 {[%clk 0:00:20]}  Bc8 {[%clk 0:00:42]} 31. Rf1 {[%clk 0:00:16]}  Qb6 {[%clk 0:00:32]} 32. Qf2 {[%clk 0:00:15]}  Qxh6 {[%clk 0:00:31]} 33. Bxf5 {[%clk 0:00:12]}  Bxf5 {[%clk 0:00:28]} 34. Qxf5 {[%clk 0:00:13]}  Rxg3+ {[%clk 0:00:24]} 35. Kh2 {[%clk 0:00:13]}  Rg7 {[%clk 0:00:24]} 36. Qc8+ {[%clk 0:00:12]}  Bf8 {[%clk 0:00:24]} 37. Qf5 {[%clk 0:00:10]}  Nc6 {[%clk 0:00:20]} 38. Rf4 {[%clk 0:00:08]}  Ne7 {[%clk 0:00:18]} 39. Qf6 {[%clk 0:00:06]}  Qxh5+ {[%clk 0:00:17]} 40. Rh4 {[%clk 0:00:05]}  Qe2+ {[%clk 0:00:17]} 0-1


[Site "https://www.chess.com"]